bitfinex-derivatives/quotes_BNBF0:USTF0_20250221
["timestamp","ask_amount","ask_price","bid_price","bid_amount"]
[1740152686073,1.23046826,652.06,648.0,0.30864197]
[1740152686373,1.23046826,652.05,648.0,0.30864197]
[1740152686571,1.41164748,652.49,648.0,0.30864197]
[1740152686572,3.80456164,652.04,648.0,0.30864197]
[1740152686767,3.80456164,652.03,648.0,0.30864197]
[1740152686968,3.80456164,652.02,648.0,0.30864197]
[1740152687172,3.80456164,652.01,648.0,0.30864197]
[1740152687473,3.19194408,652.0,648.0,0.30864197]
[1740152687673,1.23046826,651.99,648.0,0.30864197]
[1740152687868,2.47401995,652.03,648.0,0.30864197]
[1740152687869,1.22547289,651.98,648.0,0.30864197]
[1740152688172,1.22547289,651.97,648.0,0.30864197]
[1740152688374,1.41164748,652.34,648.0,0.30864197]
[1740152688375,1.39682622,652.3,648.0,0.30864197]
[1740152688574,3.79492793,652.29,648.0,0.30864197]
[1740152688768,3.18247625,652.28,648.0,0.30864197]
[1740152688972,3.18247625,652.27,648.0,0.30864197]
[1740152689168,3.18247625,652.26,648.0,0.30864197]
[1740152689373,1.22402933,652.25,648.0,0.30864197]
[1740152689675,1.39682622,652.65,648.0,0.30864197]
[1740152689872,3.7925548,652.64,648.0,0.30864197]
[1740152690068,3.7925548,652.63,648.0,0.30864197]
[1740152690273,3.18033238,652.62,648.0,0.30864197]
[1740152690474,3.18033238,652.61,648.05,2.28238038]
[1740152690674,3.17772702,652.6,648.05,2.28238038]
[1740152690875,3.78989468,652.59,648.05,2.28238038]
[1740152691076,4.73890768,652.58,648.05,2.28238038]
[1740152691270,3.78989468,652.57,648.05,2.28238038]
[1740152691472,3.78989468,652.56,648.05,2.28238038]
[1740152691677,0.949013,652.58,648.05,2.28238038]
[1740152691678,3.78989468,652.55,648.05,2.28238038]
[1740152691877,3.78376927,652.54,648.05,2.28238038]
[1740152692077,3.17143625,652.53,648.05,2.28238038]
[1740152692275,2.46364937,652.55,648.05,2.28238038]
[1740152692479,2.46364937,652.55,648.46,2.28238038]
[1740152692775,1.3840816,652.99,648.46,2.28238038]
[1740152692980,1.3840816,652.91,648.46,2.28238038]
[1740152693278,6.85180915,652.9,648.46,2.28238038]
[1740152693483,3.78069344,652.89,648.46,2.28238038]
[1740152693674,3.77796494,652.88,648.46,2.28238038]
[1740152693881,3.16591041,652.87,648.46,2.28238038]
[1740152694075,1.21765785,652.86,648.46,2.28238038]
[1740152694275,1.21765785,652.85,648.76,2.28238038]
[1740152694475,1.21679618,652.84,648.76,2.28238038]
[1740152694679,1.21679618,652.83,648.76,2.28238038]
[1740152694879,1.21679618,652.82,648.76,2.28238038]
[1740152695080,1.21679618,652.81,648.76,2.28238038]
[1740152695281,1.21679618,652.8,648.76,2.28238038]
[1740152695580,1.21679618,652.79,648.76,2.28238038]
[1740152695778,1.38146937,653.07,648.76,2.28238038]
[1740152695975,6.22552231,653.06,648.76,2.28238038]
[1740152696176,3.77270971,653.05,648.76,2.28238038]
[1740152696381,3.77270971,653.04,648.76,2.28238038]
[1740152696573,3.77270971,653.03,648.76,2.28238038]
[1740152696779,1.21566551,653.02,648.83,2.28238038]
[1740152696980,2.4528126,653.04,648.83,2.28238038]
[1740152696981,1.21566551,653.01,648.83,2.28238038]
[1740152697176,1.21566551,653.0,648.83,2.28238038]
[1740152697481,3.76948591,652.99,648.83,2.28238038]
[1740152697683,3.76948591,652.98,648.83,2.28238038]
[1740152697976,2.82828421,655.39,648.83,2.28238038]
[1740152697977,6.21758903,652.97,648.83,2.28238038]
[1740152698179,3.76948591,652.96,648.83,2.28238038]
[1740152698378,3.76948591,652.95,648.83,2.28238038]
[1740152698579,3.15741045,652.94,648.83,2.28238038]
[1740152698775,2.44810312,652.95,649.22,2.28238038]
[1740152698776,3.76953284,652.93,649.22,2.28238038]
[1740152698982,2.44810312,652.95,649.22,2.28238038]
[1740152698983,3.15741045,652.92,649.22,2.28238038]
[1740152699277,2.44810312,652.95,649.22,2.28238038]
[1740152699577,1.21339464,652.94,649.22,2.28238038]
[1740152699779,1.38146937,653.22,649.22,2.28238038]
[1740152700083,1.38146937,653.2,649.22,2.28238038]
[1740152700277,3.15360929,653.19,649.22,2.28238038]
[1740152700582,4.70677317,653.18,649.77,2.28238038]
[1740152700774,3.76547651,653.17,649.77,2.28238038]
[1740152700975,3.76551177,653.16,649.77,2.28238038]
[1740152701174,3.15360929,653.15,649.77,2.28238038]
[1740152701380,3.15360929,653.14,649.77,2.28238038]
[1740152701581,3.15628735,653.13,649.77,2.28238038]
[1740152701777,3.15628735,653.12,649.77,2.28238038]
[1740152701982,3.15628735,653.11,649.77,2.28238038]
[1740152704485,1.38146937,652.89,649.44,2.28238038]
[1740152704679,1.38146937,652.87,649.44,2.28238038]
[1740152704883,3.76978056,652.86,649.44,2.28238038]
[1740152705080,3.15774091,652.85,649.3,2.28238038]
[1740152705284,1.21292665,652.84,649.3,2.28238038]
[1740152705486,1.21838157,652.83,649.3,2.28238038]
[1740152705687,1.38146937,653.1,649.3,2.28238038]
[1740152705883,3.78059132,653.09,649.3,2.28238038]
[1740152706087,3.78059132,653.08,649.3,2.28238038]
[1740152706282,3.16864639,653.07,649.3,2.28238038]
[1740152706489,2.45911207,653.08,649.3,2.28238038]
[1740152706490,3.78057886,653.06,649.3,2.28238038]
[1740152706695,3.78057886,653.05,649.3,2.28238038]
[1740152706883,3.78057886,653.04,649.36,2.28238038]
[1740152707084,3.17287777,653.03,649.36,2.28238038]
[1740152707287,1.21871015,653.02,649.36,2.28238038]
[1740152707486,3.17667485,653.01,649.36,2.28238038]
[1740152707685,1.21871015,653.0,649.36,2.28238038]
[1740152707988,1.21871015,652.99,649.36,2.28238038]
[1740152708191,3.17593514,652.98,649.36,2.28238038]
[1740152708392,3.7877682,652.97,649.36,2.28238038]
[1740152708594,3.7877682,652.96,649.36,2.28238038]
[1740152708787,3.7877682,652.95,649.36,2.28238038]
[1740152708994,3.7877682,652.94,649.73,2.28238038]
[1740152709189,1.21871015,652.93,649.73,2.28238038]
[1740152709389,3.16383136,652.92,649.73,2.28238038]
[1740152709595,3.16383136,652.91,649.73,2.28238038]
[1740152709789,3.16383136,652.9,649.73,2.28238038]
[1740152709990,3.77572997,652.89,649.73,2.28238038]
[1740152710191,1.38146937,652.86,649.73,2.28238038]
[1740152710394,1.38146937,652.8,649.73,2.28238038]
[1740152710596,3.77577203,652.79,649.73,2.28238038]
[1740152710897,3.77577203,652.78,649.76,2.28238038]
[1740152711098,6.25877157,652.77,649.76,2.28238038]
[1740152711292,3.77577203,652.76,649.76,2.28238038]
[1740152711492,1.38146937,652.72,649.76,2.28238038]
[1740152711698,1.38146937,652.69,649.76,2.28238038]
[1740152711894,5.1572414,652.68,649.76,2.28238038]
[1740152712096,5.1572414,652.67,649.76,2.28238038]
[1740152712294,1.38146937,652.5,649.76,2.28238038]
[1740152712500,1.38146937,652.47,649.76,2.28238038]
[1740152712799,1.38146937,652.45,649.6,2.28238038]
[1740152713000,3.77577203,652.44,649.6,2.28238038]
[1740152713197,3.77577203,652.43,649.6,2.28238038]
[1740152713394,1.38146937,652.34,649.6,2.28238038]
[1740152713601,1.38146937,652.31,649.6,2.28238038]
[1740152713795,3.77577203,652.3,649.6,2.28238038]
[1740152713995,3.77577203,652.29,649.6,2.28238038]
[1740152714201,3.77577203,652.28,649.6,2.28238038]
[1740152714499,1.38146937,652.17,649.6,2.28238038]
[1740152714703,5.1572414,652.16,649.96,2.28238038]
[1740152714895,1.38146937,652.12,649.96,2.28238038]
[1740152715095,1.38146937,652.07,649.96,2.28238038]
[1740152715297,1.38146937,652.04,649.96,2.28238038]
[1740152715502,1.38146937,651.96,649.96,2.28238038]
[1740152715699,3.77577203,651.95,649.96,2.28238038]
[1740152715901,3.77577203,651.94,649.96,2.28238038]
[1740152716097,1.38146937,651.88,649.96,2.28238038]
[1740152716303,0.84924102,652.22,649.96,2.28238038]
[1740152716304,3.77577203,651.87,649.96,2.28238038]
[1740152716501,1.38146937,651.79,649.96,2.28238038]
[1740152716699,5.1572414,651.78,649.96,2.28238038]
[1740152716900,3.83150273,651.77,649.96,2.28238038]
[1740152717100,3.09500441,651.78,649.51,2.28238038]
[1740152717301,3.83164341,651.77,649.51,2.28238038]
[1740152717497,1.38146937,651.69,649.51,2.28238038]
[1740152717702,3.83164341,651.68,649.51,2.28238038]
[1740152717898,1.38146937,651.73,649.51,2.28238038]
[1740152718099,1.38146937,651.71,649.51,2.28238038]
[1740152718299,3.84058547,651.7,649.51,2.28238038]
[1740152718604,1.38146937,651.67,649.51,2.28238038]
[1740152718805,1.38146937,651.68,649.51,2.28238038]
[1740152719103,1.38146937,651.71,649.51,2.28238038]
[1740152719307,1.41164748,651.66,649.51,2.28238038]
[1740152719604,1.38146937,651.4,649.51,2.28238038]
[1740152719807,1.38146937,651.37,649.51,2.28238038]
[1740152720000,1.38146937,651.38,649.34,2.28238038]
[1740152720199,1.38146937,651.35,649.34,2.28238038]
[1740152720396,1.38146937,651.34,649.34,2.28238038]
[1740152720598,1.38146937,651.27,649.34,2.28238038]
[1740152720798,1.38146937,651.17,649.34,2.28238038]
[1740152721104,1.38146937,651.14,649.34,2.28238038]
[1740152721306,2.23417094,651.12,649.34,2.28238038]
[1740152721501,2.23417094,651.2,649.34,2.28238038]
[1740152721697,1.38146937,651.26,649.34,2.28238038]
[1740152721898,1.41164748,651.26,649.34,2.28238038]
[1740152722298,1.41164748,651.31,649.37,2.28238038]
[1740152723102,3.64581842,651.44,649.37,2.28238038]
[1740152723296,1.41164748,651.44,649.37,2.28238038]
[1740152723501,2.23417094,651.38,649.37,2.28238038]
[1740152723702,2.23417094,651.35,649.37,2.28238038]
[1740152723898,2.23417094,651.23,649.37,2.28238038]
[1740152724404,2.23417094,651.2,649.37,2.28238038]
[1740152724606,2.23417094,651.15,649.47,2.28238038]
[1740152724903,2.30485075,651.06,649.47,2.28238038]
[1740152725104,2.30485075,651.11,649.47,2.28238038]
[1740152725305,2.30485075,651.13,649.47,2.28238038]
[1740152725604,2.30485075,651.14,649.47,2.28238038]
[1740152725806,1.41164748,651.12,649.47,2.28238038]
[1740152726003,2.30485075,651.03,649.47,2.28238038]
[1740152726202,2.30485075,650.92,649.47,2.28238038]
[1740152726401,2.30485075,650.87,649.47,2.28238038]
[1740152726604,2.30485075,650.83,649.47,2.28238038]
[1740152726800,2.30485075,650.72,649.49,0.30793391]
[1740152727103,0.86431903,650.58,649.49,0.30793391]
[1740152727404,2.30485075,650.49,649.49,0.30793391]
[1740152727606,2.30485075,650.48,649.49,0.30793391]
[1740152727905,2.30485075,650.55,649.49,0.30793391]
[1740152728099,1.41164748,650.59,649.49,0.30793391]
[1740152728100,1.44053172,650.53,649.49,0.30793391]
[1740152728299,1.44053172,650.5,649.49,0.30793391]
[1740152728504,2.30485075,650.5,649.49,0.30793391]
[1740152728704,2.30485075,650.49,649.49,0.30793391]
[1740152729005,1.41164748,650.51,649.49,0.30793391]
[1740152729599,1.44053172,650.56,649.49,0.30793391]
[1740152729799,2.8521792,650.57,649.49,0.30793391]
[1740152730000,2.30485075,650.54,649.49,0.30793391]
[1740152730306,1.44053172,650.44,649.49,0.30793391]
[1740152730601,1.44053172,650.42,649.49,0.30793391]
[1740152730799,0.86431903,650.31,649.49,0.30793391]
[1740152731005,1.44053172,650.23,649.49,0.30793391]
[1740152731203,1.44053172,650.29,649.49,0.30793391]
[1740152731403,2.30485075,650.34,649.49,0.30793391]
[1740152731600,1.41164748,650.23,649.49,0.30793391]
[1740152732605,1.41164748,650.56,649.49,0.30793391]
[1740152733299,1.41164748,650.73,649.49,0.30793391]
[1740152733906,1.41164748,650.86,649.49,0.30793391]
[1740152734507,1.44053172,651.01,649.49,0.30793391]
[1740152735105,1.41164748,651.02,649.49,0.30793391]
[1740152735307,1.41164748,651.01,649.49,0.30793391]
[1740152736007,1.41164748,651.09,649.49,0.30793391]
[1740152736607,1.41164748,651.2,649.49,0.30793391]
[1740152737310,1.44053172,651.26,649.49,0.30793391]
[1740152737311,1.41164748,651.26,649.49,0.30793391]
[1740152737509,2.8521792,651.26,649.49,0.30793391]
[1740152738212,1.44053172,651.21,649.49,0.30793391]
[1740152738510,1.41164748,651.24,649.49,0.30793391]
[1740152739109,1.09088011,654.06,649.49,0.30793391]
[1740152739110,1.41164748,651.49,649.49,0.30793391]
[1740152739703,1.41164748,651.64,649.49,0.30793391]
[1740152740304,2.30189248,651.63,649.49,0.30793391]
[1740152740510,2.30189248,651.6,649.49,0.30793391]
[1740152740710,2.30189248,651.63,649.49,0.30793391]
[1740152740911,2.30189248,651.59,649.49,0.30793391]
[1740152741511,0.86136076,651.59,649.49,0.30793391]
[1740152741707,2.30189248,651.56,649.49,0.30793391]
[1740152741908,2.30189248,651.55,649.49,0.30793391]
[1740152742105,2.30189248,651.52,649.49,0.30793391]
[1740152742303,6.59246768,651.51,649.49,0.30793391]
[1740152742503,2.30189248,651.48,649.49,0.30793391]
[1740152742709,3.71353996,651.48,649.49,0.30793391]
[1740152742910,2.30189248,651.27,649.49,0.30793391]
[1740152743110,2.30189248,651.02,649.49,0.30793391]
[1740152743311,2.29674598,650.93,649.49,0.30793391]
[1740152743809,1.43538522,650.91,649.49,0.30793391]
[1740152744209,1.41164748,650.91,649.49,0.30793391]
[1740152745008,1.41164748,651.18,649.49,0.30793391]
[1740152745414,1.41164748,651.32,649.49,0.30793391]
[1740152745814,1.41164748,651.36,649.49,0.30793391]
[1740152746411,1.41164748,651.46,649.49,0.30793391]
[1740152746617,1.43672884,651.44,649.49,0.30793391]
[1740152746817,1.43672884,651.39,649.49,0.30793391]
[1740152747014,2.29842771,651.45,649.49,0.30793391]
[1740152747216,1.41164748,651.46,649.49,0.30793391]
[1740152747413,1.41164748,651.39,649.49,0.30793391]
[1740152748211,2.29842771,651.46,649.49,0.30793391]
[1740152748413,1.43672884,651.44,649.49,0.30793391]
[1740152748616,1.43672884,651.43,649.49,0.30793391]
[1740152748916,1.43672884,651.46,649.49,0.30793391]
[1740152749218,1.41164748,651.43,649.49,0.30793391]
[1740152750018,1.41164748,651.45,649.49,0.30793391]
[1740152750612,1.41164748,651.63,649.49,0.30793391]
[1740152751617,1.41164748,651.71,649.49,0.30793391]
[1740152752018,1.43672884,651.96,649.49,0.30793391]
[1740152752217,1.41164748,651.97,649.49,0.30793391]
[1740152752419,2.29842771,651.95,649.49,0.30793391]
[1740152752618,1.41164748,651.97,649.49,0.30793391]
[1740152753516,1.41164748,652.11,649.49,0.30793391]
[1740152754323,1.41164748,652.2,649.8,2.28238038]
[1740152755624,4.59285955,654.31,649.8,2.28238038]
[1740152755625,1.41164748,652.38,649.8,2.28238038]
[1740152756522,2.29842771,652.94,649.8,2.28238038]
[1740152756723,1.41164748,652.98,649.49,0.30793391]
[1740152756724,2.29842771,652.93,649.7,2.28238038]
[1740152756917,1.43672884,652.93,649.95,0.30771597]
[1740152757125,2.29842771,652.86,649.95,0.30771597]
[1740152757422,2.29842771,652.72,649.95,0.30771597]
[1740152757617,2.29842771,652.67,649.95,0.30771597]
[1740152757817,2.29842771,652.6,649.95,0.30771597]
[1740152758016,1.69718735,652.59,649.95,0.30771597]
[1740152758222,1.43672884,652.61,649.95,0.30771597]
[1740152758223,1.43672884,652.48,649.95,0.30771597]
[1740152758420,1.43672884,652.46,649.95,0.30771597]
[1740152758620,1.43672884,652.39,649.95,0.30771597]
[1740152758821,1.43672884,652.35,649.95,0.30771597]
[1740152759018,1.43672884,652.33,650.03,2.28238038]
[1740152759324,1.41164748,652.33,650.14,0.30762604]
[1740152759917,1.43672884,652.44,650.14,0.30762604]
[1740152760117,2.84837632,652.45,650.14,0.30762604]
[1740152760324,1.41164748,652.45,650.14,0.30762604]
[1740152760823,1.41164748,652.52,650.14,0.30762604]
[1740152761519,1.43672884,652.71,650.14,0.30762604]
[1740152761720,1.41164748,652.72,650.14,0.30762604]
[1740152761915,1.43672884,652.69,650.14,0.30762604]
[1740152762115,1.43672884,652.71,650.14,0.30762604]
[1740152762318,1.43672884,652.62,650.14,0.30762604]
[1740152762518,1.43672884,652.56,650.14,0.30762604]
[1740152762713,1.41164748,652.56,650.14,0.30762604]
[1740152763723,1.41164748,652.58,650.14,0.30762604]
[1740152764522,1.43691605,652.79,650.14,0.30762604]
[1740152764723,2.84856353,652.8,650.14,0.30762604]
[1740152764922,1.41164748,652.8,650.14,0.30762604]
[1740152765623,1.43588313,653.02,650.14,0.30762604]
[1740152765624,1.41164748,653.02,650.14,0.30762604]
[1740152766619,1.41164748,653.21,650.14,0.30762604]
[1740152767225,5.26198158,653.2,650.14,0.30762604]
[1740152767425,5.77652194,656.05,650.14,0.30762604]
[1740152767426,1.41164748,653.16,650.14,0.30762604]
[1740152767625,3.82609845,653.15,650.14,0.30762604]
[1740152767827,3.82609845,653.14,650.14,0.30762604]
[1740152768127,3.82609845,653.13,650.14,0.30762604]
[1740152768320,3.1631897,653.14,650.14,0.30762604]
[1740152768521,1.41164748,653.21,650.14,0.30762604]
[1740152769128,1.41164748,653.32,650.14,0.30762604]
[1740152769427,3.82263267,653.31,650.14,0.30762604]
[1740152769627,3.82263267,653.3,650.14,0.30762604]
[1740152769826,3.82263267,653.29,650.14,0.30762604]
[1740152770021,3.82263267,653.28,650.14,0.30762604]
[1740152770221,3.82263267,653.27,650.14,0.30762604]
[1740152770422,3.15944581,653.27,650.14,0.30762604]
[1740152771220,1.41164748,653.41,650.14,0.30762604]
[1740152771425,3.81472849,653.4,650.14,0.30762604]
[1740152771622,3.81454421,653.39,650.14,0.30762604]
[1740152771827,3.81454421,653.38,650.14,0.30762604]
[1740152772026,3.81454421,653.37,650.14,0.30762604]
[1740152772226,3.81454421,653.36,650.14,0.30762604]
[1740152772427,3.81454421,653.35,650.14,0.30762604]
[1740152772622,3.15231734,653.35,650.14,0.30762604]
[1740152773224,1.41164748,653.55,650.14,0.30762604]
[1740152773427,3.19502573,653.54,650.14,0.30762604]
[1740152773627,1.41164748,653.81,650.14,0.30762604]
[1740152773828,3.80615712,653.8,650.14,0.30762604]
[1740152774125,1.43588313,653.77,650.28,2.28238038]
[1740152774329,6.95216281,653.79,650.28,2.28238038]
[1740152774330,3.80615712,653.76,650.28,2.28238038]
[1740152774524,3.19543521,653.75,650.45,0.30747943]
[1740152774826,5.72877053,653.74,650.45,0.30747943]
[1740152775027,2.53530155,653.74,650.45,0.30747943]
[1740152776029,1.41164748,654.05,650.45,0.30747943]
[1740152776230,3.79423988,654.04,650.45,0.30747943]
[1740152776429,4.10000276,654.03,650.45,0.30747943]
[1740152776628,4.0999942,654.02,650.45,0.30747943]
[1740152776831,3.48947552,654.01,650.45,0.30747943]
[1740152777029,3.48948019,654.0,650.45,0.30747943]
[1740152777230,1.22448838,653.99,650.45,0.30747943]
[1740152777428,1.22448838,653.98,650.45,0.30747943]
[1740152777625,1.22448838,653.97,650.45,0.30747943]
[1740152777825,1.22448838,653.96,650.45,0.30747943]
[1740152778029,1.22448838,653.95,650.45,0.30747943]
[1740152778229,1.22448838,653.94,650.45,0.30747943]
[1740152778425,3.17730219,653.93,650.45,0.30747943]
[1740152778732,3.17730219,653.92,650.45,0.30747943]
[1740152778925,3.17762074,653.91,650.45,0.30747943]
[1740152779125,2.52091176,653.91,650.45,0.30747943]
[1740152779930,0.30581039,654.0,650.45,0.30747943]
[1740152780130,3.16916682,653.99,650.45,0.30747943]
[1740152780425,6.29260252,653.98,650.45,0.30747943]
[1740152780625,3.77974952,653.97,650.45,0.30747943]
[1740152780832,3.77974952,653.96,650.45,0.30747943]
[1740152781027,3.77974952,653.95,650.45,0.30747943]
[1740152781233,3.16916682,653.94,650.44,2.28238038]
[1740152781434,3.167581,653.93,650.44,2.28238038]
[1740152781727,1.21973512,653.92,650.44,2.28238038]
[1740152781927,3.16743924,653.91,650.44,2.28238038]
[1740152782135,3.16743924,653.9,650.53,2.28238038]
[1740152782330,1.21973512,653.89,650.53,2.28238038]
[1740152782629,2.51170364,653.91,650.53,2.28238038]
[1740152783032,1.41164748,654.27,650.53,2.28238038]
[1740152783234,3.77254414,654.26,650.53,2.28238038]
[1740152783533,3.77254414,654.25,650.53,2.28238038]
[1740152783827,3.77254414,654.25,650.91,2.28238038]
[1740152783828,3.16299363,654.24,650.91,2.28238038]
[1740152784032,3.16299363,654.23,650.91,2.28238038]
[1740152784233,3.11974767,654.25,650.91,2.28238038]
[1740152784530,1.41164748,654.49,650.91,2.28238038]
[1740152784728,3.77339468,654.48,650.91,2.28238038]
[1740152784925,3.77341287,654.47,650.91,2.28238038]
[1740152785126,3.77344314,654.46,650.91,2.28238038]
[1740152785326,3.77344314,654.45,650.91,2.28238038]
[1740152785631,3.11929795,654.46,650.91,2.28238038]
[1740152786532,1.41164748,654.89,650.91,2.28238038]
[1740152786734,3.77027793,654.88,650.77,2.28238038]
[1740152787028,3.77027793,654.87,650.77,2.28238038]
[1740152787233,3.77027793,654.86,650.77,2.28238038]
[1740152787433,3.77027793,654.85,650.77,2.28238038]
[1740152787626,3.77027793,654.84,650.77,2.28238038]
[1740152787829,3.77022363,654.83,650.77,2.28238038]
[1740152788027,1.21548181,654.82,650.77,2.28238038]
[1740152788331,3.09596831,654.81,650.77,2.28238038]
[1740152788635,3.09596831,654.8,651.48,2.28238038]
[1740152788831,1.41164748,654.75,651.48,2.28238038]
[1740152789032,3.7061506,654.74,651.48,2.28238038]
[1740152789233,1.41164748,654.67,651.48,2.28238038]
[1740152789434,3.09596831,654.66,651.48,2.28238038]
[1740152789732,1.21548181,654.65,651.48,2.28238038]
[1740152789932,3.09636734,654.64,651.48,2.28238038]
[1740152790133,3.70668316,654.63,651.4,2.28238038]
[1740152790333,6.21327278,654.62,651.4,2.28238038]
[1740152790532,3.09636734,654.61,651.4,2.28238038]
[1740152790731,3.09655639,654.6,651.4,2.28238038]
[1740152791031,3.05667747,654.59,651.4,2.28238038]
[1740152791231,3.6670398,654.58,651.4,2.28238038]
[1740152791525,1.41164748,654.48,651.4,2.28238038]
[1740152791730,1.17564518,654.47,651.4,2.28238038]
[1740152791929,1.17564518,654.46,651.4,2.28238038]
[1740152792131,1.17564518,654.45,651.4,2.28238038]
[1740152792332,1.17564518,654.44,651.4,2.28238038]
[1740152792526,1.17564518,654.43,651.01,2.28238038]
[1740152792731,3.06036366,654.42,651.01,2.28238038]
[1740152792931,3.11690544,654.46,651.01,2.28238038]
[1740152792932,3.6708047,654.41,651.01,2.28238038]
[1740152793133,1.40911299,654.26,651.01,2.28238038]
[1740152793335,4.12870559,654.25,651.01,2.28238038]
[1740152793630,1.41164748,654.07,651.01,2.28238038]
[1740152793827,1.17564518,654.06,651.01,2.28238038]
[1740152794032,1.17564518,654.05,651.01,2.28238038]
[1740152794335,1.17564518,654.04,650.84,2.28238038]
[1740152794633,1.17564518,654.03,650.84,2.28238038]
[1740152794836,3.06603022,654.02,650.84,2.28238038]
[1740152795029,3.06603022,654.01,650.84,2.28238038]
[1740152795333,1.41164748,653.98,650.84,2.28238038]
[1740152795533,3.67678975,653.97,650.84,2.28238038]
[1740152795731,3.67678975,653.96,650.84,2.28238038]
[1740152795932,3.67678975,653.95,650.84,2.28238038]
[1740152796134,1.41164748,653.83,650.84,2.28238038]
[1740152796328,1.41164748,653.83,651.2,2.28238038]
[1740152797032,3.11690544,653.82,651.2,2.28238038]
[1740152797631,1.57429801,653.81,651.2,2.28238038]
[1740152797835,3.11690544,653.81,651.27,2.28238038]
[1740152798037,1.18296508,653.8,651.27,2.28238038]
[1740152798233,1.18315664,653.79,651.27,2.28238038]
[1740152798430,1.18315664,653.78,651.27,2.28238038]
[1740152798634,1.18315664,653.77,651.27,2.28238038]
[1740152798830,3.07564665,653.76,651.27,2.28238038]
[1740152799134,1.41164748,653.74,651.27,2.28238038]
[1740152799335,3.07554959,653.73,651.27,2.28238038]
[1740152799631,3.07691839,653.72,651.27,2.28238038]
[1740152799831,4.48846713,653.71,651.27,2.28238038]
[1740152800036,3.07681965,653.7,651.27,2.28238038]
[1740152800236,3.07681965,653.69,651.54,2.28238038]
[1740152800536,6.19372509,653.68,651.54,2.28238038]
[1740152800736,3.07681965,653.67,651.54,2.28238038]
[1740152801036,3.07681965,653.66,651.54,2.28238038]
[1740152801233,3.07681965,653.65,651.54,2.28238038]
[1740152801437,1.41164748,653.63,651.54,2.28238038]
[1740152801635,3.07681965,653.62,651.54,2.28238038]
[1740152801835,3.07841431,653.61,651.54,2.28238038]
[1740152802031,3.07841431,653.6,651.54,2.28238038]
[1740152802236,3.07841431,653.59,651.54,2.28238038]
[1740152802437,3.08218288,653.58,651.4,2.28238038]
[1740152802739,3.08218288,653.57,651.5,0.30698388]
[1740152802941,3.08218288,653.56,651.5,0.30698388]
[1740152803138,3.6931296,653.55,651.5,0.30698388]
[1740152803335,3.69312061,653.54,651.5,0.30698388]
[1740152803540,3.69312061,653.53,651.5,0.30698388]
[1740152803743,3.08218288,653.52,651.5,0.30698388]
[1740152804041,3.69316048,653.51,651.5,0.30698388]
[1740152804246,1.41164748,653.48,651.5,0.30698388]
[1740152804547,3.69316048,653.47,651.5,0.30698388]
[1740152804741,1.41164748,653.37,651.5,0.30698388]
[1740152804946,3.7061499,653.36,651.5,0.30698388]
[1740152805141,1.42730067,653.31,651.5,0.30698388]
[1740152805346,1.42730067,653.28,651.5,0.30698388]
[1740152805643,1.41164748,653.09,651.5,0.30698388]
[1740152805948,3.7061499,653.08,651.5,0.30698388]
[1740152806246,1.41164748,652.96,651.5,0.30698388]
[1740152806442,3.7061499,652.95,651.5,0.30698388]
[1740152806646,1.41164748,652.96,651.51,1.385]
[1740152806947,1.41164748,652.96,651.53,0.30696974]
[1740152807347,1.41164748,653.06,651.53,0.30696974]
[1740152807545,3.72029489,653.05,651.53,0.30696974]
[1740152807748,3.72029489,653.04,651.53,0.30696974]
[1740152807944,1.41164748,652.97,651.53,0.30696974]
[1740152808150,5.60611935,652.96,651.53,0.30696974]
[1740152808341,1.42730067,652.9,651.53,0.30696974]
[1740152808541,1.41164748,652.84,651.53,0.30696974]
[1740152808746,1.42730067,652.82,651.53,0.30696974]
[1740152809041,1.42730067,652.8,651.53,0.30696974]
[1740152809241,1.42730067,652.81,651.53,0.30696974]
[1740152809449,1.41164748,652.82,651.53,0.30696974]
[1740152809950,1.41164748,652.83,651.53,0.30696974]
[1740152810847,1.41164748,652.86,651.53,0.30696974]
[1740152811249,1.41164748,653.2,651.53,0.30696974]
[1740152811651,2.29930077,653.18,651.53,0.30696974]
[1740152811851,2.29930077,653.17,651.53,0.30696974]
[1740152812151,1.41164748,653.17,651.53,0.30696974]
[1740152813052,1.41164748,653.26,651.53,0.30696974]
[1740152813445,1.41164748,653.37,651.53,0.30696974]
[1740152814344,3.71094825,653.52,651.53,0.30696974]
[1740152814546,1.41164748,653.52,651.53,0.30696974]
[1740152814848,2.29930077,653.51,651.53,0.30696974]
[1740152815050,1.41164748,653.5,651.53,0.30696974]
[1740152815648,1.41164748,653.6,651.53,0.30696974]
[1740152815852,0.30600223,653.59,651.53,0.30696974]
[1740152816654,0.30600223,653.59,651.54,2.28238038]
[1740152816849,0.30600223,653.59,651.64,0.30691793]
[1740152818155,1.41164748,654.26,651.64,0.30691793]
[1740152818654,1.41164748,654.3,651.64,0.30691793]
[1740152819257,1.41164748,654.3,651.67,2.28238038]
[1740152819458,2.32212491,654.34,651.67,2.28238038]
[1740152819659,2.32212491,654.3,651.67,2.28238038]
[1740152819853,2.32212491,654.28,651.67,2.28238038]
[1740152820051,2.32212491,654.23,651.67,2.28238038]
[1740152820257,2.32212491,654.18,651.67,2.28238038]
[1740152820453,2.32212491,654.19,651.67,2.28238038]
[1740152820651,2.32212491,654.1,651.67,2.28238038]
[1740152820850,2.32253443,654.06,651.67,2.28238038]
[1740152821052,2.32253443,654.09,651.67,2.28238038]